Workbook

Sheet Mieteinnahmen Mehrfamilienhaus
A1: Mieteinnahmen Mehrfamilienhaus
A2: Stand: | B2: 03.09.2025
A3: Anschrift: | B3: Musterstraße 12, 10115 Berlin
A5: Nr. | B5: Lage | C5: Größe (qm) | D5: Status | E5: Netto-Kaltmiete (€) | F5: Qm-Preis (€/qm) | G5: Nebenkosten Vorauszahlung (€) | H5: Nebenkosten / qm (€/qm) | I5: Stellplatz-Miete (€) | J5: Brutto-Miete (€) | K5: SOLL Netto-Kaltmiete (€) | L5: SOLL Stellplatz-Miete (€)
A6: 1 | B6: WE 1 links | C6: 62.50 | D6: vermietet | E6: € 680.00 | F6: =IF(C6>0,E6/C6,"") -> 10.88 | G6: € 120.00 | H6: =IF(C6>0,G6/C6,"") -> 1.92 | I6: € 0.00 | J6: =IF(D6="vermietet",E6+G6+I6,0) -> € 800.00 | K6: € 700.00 | L6: € 0.00
A7: 2 | B7: WE 1 rechts | C7: 58.00 | D7: vermietet | E7: € 640.00 | F7: 11.03 | G7: € 110.00 | H7: 1.90 | I7: € 0.00 | J7: € 750.00 | K7: € 670.00 | L7: € 0.00
A8: 3 | B8: WE 2 links | C8: 75.20 | D8: vermietet | E8: € 820.00 | F8: 10.90 | G8: € 140.00 | H8: 1.86 | I8: € 60.00 | J8: € 1,020.00 | K8: € 860.00 | L8: € 50.00
A9: 4 | B9: WE 2 rechts | C9: 74.80 | D9: leer | E9: € 0.00 | F9: 0.00 | G9: € 0.00 | H9: 0.00 | I9: € 0.00 | J9: € 0.00 | K9: € 850.00 | L9: € 40.00
A10: 5 | B10: WE 3 links | C10: 80.00 | D10: vermietet | E10: € 900.00 | F10: 11.25 | G10: € 150.00 | H10: 1.88 | I10: € 0.00 | J10: € 1,050.00 | K10: € 920.00 | L10: € 0.00
A11: 6 | B11: WE 3 rechts | C11: 80.00 | D11: vermietet | E11: € 910.00 | F11: 11.38 | G11: € 150.00 | H11: 1.88 | I11: € 0.00 | J11: € 1,060.00 | K11: € 930.00 | L11: € 0.00
A12: 7 | B12: WE 4 links | C12: 52.00 | D12: vermietet | E12: € 560.00 | F12: 10.77 | G12: € 95.00 | H12: 1.83 | I12: € 0.00 | J12: € 655.00 | K12: € 600.00 | L12: € 0.00
A13: 8 | B13: WE 4 rechts | C13: 52.00 | D13: leer | E13: € 0.00 | F13: 0.00 | G13: € 0.00 | H13: 0.00 | I13: € 0.00 | J13: € 0.00 | K13: € 600.00 | L13: € 0.00
A14: 9 | B14: Dachgeschoss | C14: 45.50 | D14: vermietet | E14: € 520.00 | F14: 11.43 | G14: € 85.00 | H14: 1.87 | I14: € 0.00 | J14: € 605.00 | K14: € 540.00 | L14: € 0.00
A15: 10 | B15: Gewerbe EG | C15: 120.00 | D15: vermietet | E15: € 1,500.00 | F15: 12.50 | G15: € 300.00 | H15: 2.50 | I15: € 0.00 | J15: € 1,800.00 | K15: € 1,600.00 | L15: € 0.00
J16: € 0.00
J17: € 0.00
J18: € 0.00
I20: Gesamt-Miete IST pro Monat: | L20: =SUMIF(D6:D18,"vermietet",E6:E18)+SUMIF(D6:D18,"vermietet",I6:I18) -> € 6,590.00
I21: Gesamt-Miete SOLL pro Monat: | L21: =SUM(L6:L18)+SUM(M6:M18) -> € 90.00
I22: Differenz: | L22: =L21-L20 -> -€ 6,500.00
A24: Hinweis: Nebenkosten werden in den Gesamtsummen IST/SOLL nicht mitgerechnet.

Sheet Mieteinnahmen Wohnungen
A1: Mieteinnahmen Wohnungen
A2: Stand: | B2: 03.09.2025
A4: Nr. | B4: Adresse | C4: Detail | D4: Größe (qm) | E4: Status | F4: Netto-Kaltmiete (€) | G4: Qm-Preis (€/qm) | H4: Nebenkosten Vorauszahlung (€) | I4: Nebenkosten / qm (€/qm) | J4: Stellplatz-Miete (€) | K4: Brutto-Miete (€) | L4: SOLL Netto-Kaltmiete (€) | M4: SOLL Stellplatz-Miete (€)
A5: 1 | B5: Lindenweg 5, Köln | C5: WE 1 | D5: 55.00 | E5: vermietet | F5: € 620.00 | G5: =IF(D5>0,F5/D5,"") -> 11.27 | H5: € 100.00 | I5: =IF(D5>0,H5/D5,"") -> 1.82 | J5: € 0.00 | K5: =IF(E5="vermietet",F5+H5+J5,0) -> € 720.00 | L5: € 650.00 | M5: € 0.00
A6: 2 | B6: Lindenweg 5, Köln | C6: WE 2 | D6: 60.00 | E6: vermietet | F6: € 690.00 | G6: 11.50 | H6: € 110.00 | I6: 1.83 | J6: € 0.00 | K6: € 800.00 | L6: € 710.00 | M6: € 0.00
A7: 3 | B7: Lindenweg 5, Köln | C7: WE 3 | D7: 0.00 | E7: leer | F7: € 0.00 | H7: € 0.00 | J7: € 0.00 | K7: € 0.00 | L7: € 700.00 | M7: € 0.00
A8: 4 | B8: Ahornallee 9, München | C8: WE 1 | D8: 78.00 | E8: vermietet | F8: € 980.00 | G8: 12.56 | H8: € 160.00 | I8: 2.05 | J8: € 70.00 | K8: € 1,210.00 | L8: € 1,000.00 | M8: € 50.00
A9: 5 | B9: Ahornallee 9, München | C9: WE 2 | D9: 80.00 | E9: vermietet | F9: € 1,020.00 | G9: 12.75 | H9: € 165.00 | I9: 2.06 | J9: € 70.00 | K9: € 1,255.00 | L9: € 1,050.00 | M9: € 50.00
A10: 6 | B10: Birkenstraße 3, Hamburg | C10: WE 1 | D10: 45.00 | E10: vermietet | F10: € 540.00 | G10: 12.00 | H10: € 85.00 | I10: 1.89 | J10: € 0.00 | K10: € 625.00 | L10: € 560.00 | M10: € 0.00
A11: 7 | B11: Birkenstraße 3, Hamburg | C11: WE 2 | D11: 46.00 | E11: vermietet | F11: € 555.00 | G11: 12.07 | H11: € 85.00 | I11: 1.85 | J11: € 0.00 | K11: € 640.00 | L11: € 570.00 | M11: € 0.00
A12: 8 | B12: Birkenstraße 3, Hamburg | C12: WE 3 | D12: 46.00 | E12: leer | F12: € 0.00 | G12: 0.00 | H12: € 0.00 | I12: 0.00 | J12: € 0.00 | K12: € 0.00 | L12: € 570.00 | M12: € 0.00
A13: 9 | B13: Birkenstraße 3, Hamburg | C13: WE 4 | D13: 50.00 | E13: vermietet | F13: € 600.00 | G13: 12.00 | H13: € 90.00 | I13: 1.80 | J13: € 0.00 | K13: € 690.00 | L13: € 620.00 | M13: € 0.00
A14: 10 | B14: Birkenstraße 3, Hamburg | C14: WE 5 | D14: 52.00 | E14: vermietet | F14: € 630.00 | G14: 12.12 | H14: € 95.00 | I14: 1.83 | J14: € 0.00 | K14: € 725.00 | L14: € 640.00 | M14: € 0.00
K15: € 0.00
K16: € 0.00
K17: € 0.00
K18: € 0.00
J20: Gesamt-Miete IST pro Monat: | M20: =SUMIF(E5:E18,"vermietet",F5:F18)+SUMIF(E5:E18,"vermietet",J5:J18) -> € 5,775.00
J21: Gesamt-Miete SOLL pro Monat: | M21: =SUM(L5:L18)+SUM(M5:M18) -> € 7,170.00
J22: Differenz: | M22: =M21-M20 -> € 1,395.00
A24: Hinweis: Nebenkosten werden in den Gesamtsummen IST/SOLL nicht mitgerechnet.

Sheet Mieter und Zahlungen
A1: Mieter und Zahlungen
A2: Stand: | B2: 09/2025
A5: Wohnung | B5: Mieter | C5: Brutto-Miete (€) | D5: Januar | E5: Februar | F5: März | G5: April | H5: Mai | I5: Juni | J5: Juli | K5: August | L5: September | M5: Oktober | N5: November | O5: Dezember
A6: WE 1 links (Berlin) | B6: Anna Müller | C6: € 800.00 | D6: € 800.00 | E6: € 800.00 | F6: € 800.00 | G6: € 800.00 | H6: € 800.00 | I6: € 800.00 | J6: € 800.00 | K6: € 800.00 | L6: € 800.00 | M6: € 800.00 | N6: € 800.00
A7: WE 2 links (Berlin) | B7: Jonas Weber | C7: € 1,020.00 | D7: € 1,020.00 | E7: € 1,020.00 | F7: € 1,020.00
A8: WE 3 links (Berlin) | B8: Lea Schäfer | C8: € 1,050.00 | D8: € 1,050.00 | E8: € 1,050.00 | F8: € 1,050.00 | G8: € 1,050.00 | H8: € 1,050.00
A9: WE 1 (Köln) | B9: Emir Yilmaz | C9: € 720.00 | D9: € 720.00 | E9: € 720.00
A10: WE 1 (München) | B10: Sophie Lange | C10: € 1,120.00 | D10: € 1,120.00
A11: WE 1 (Hamburg) | B11: Diego Torres | C11: € 625.00 | D11: € 625.00 | E11: € 625.00 | F11: € 625.00 | G11: € 625.00
